Cogmind - Beta 13 @@@ ROGUE MODE // 2024.05.23 @ 12:13:34 Player: Beef Result: Destroyed by G-34 Mercenary with Small Laser Performance ------------- Evolutions (0) 0 Regions Visited (1) 200 Robots Destroyed (22) 110 Value Destroyed (279) 279 Prototype IDs (2) 40 Alien Tech Used (0) 0 Bonus (0) 0 TOTAL SCORE: 629 Bonus ------- None Cogmind --------- Core Integrity 0/250 Matter 278/300 Energy 125/125 System Corruption 2% Temperature Cool (12) Movement Rolling (80) Location -10/Materials Parts ------- > --- POWER (1) -------- Light Ion Engine > --- PROPULSION (2) --- Wheel Wheel > --- UTILITY (2) ------ Medium Storage Unit Improved Terrain Scanner > --- WEAPON (2) ------- Light Assault Rifle Light Assault Rifle > --- INVENTORY (10) --- Light Ion Engine Light Treads Light Treads Wheel Wheel Medium Armor Plating Medium Armor Plating Light Assault Rifle Peak State ------------ > --- POWER ------------ Light Ion Engine > --- PROPULSION ------- Wheel Wheel > --- UTILITY ---------- Small Storage Unit Improved Terrain Scanner > --- WEAPON ----------- Light Assault Rifle Light Assault Rifle > --- INVENTORY -------- Light Ion Engine Light Treads Light Treads Wheel Wheel Medium Armor Plating Medium Armor Plating Light Assault Rifle [Rating: 10] Favorites ----------- Power Light Ion Engine Engine Light Ion Engine Propulsion Wheel Treads Light Treads Wheel Wheel Utility Small Storage Unit Device Seismic Detector Storage Small Storage Unit Processor Targeting Computer Weapon Light Assault Rifle Energy Gun EM Pulse Gun Ballistic Gun Light Assault Rifle Build | -11 -10 ------- Run | Yrd Mat Slots Evolved . | . . Power . | . . Propulsion . | . . Utility . | . . Weapon . | . . Parts Attached 22 | 7 15 Power 4 | 1 3 Engine 4 | 1 3 Core . | . . Reactor . | . . Propulsion 8 | 2 6 Treads 2 | . 2 Leg . | . . Wheel 6 | 2 4 Hover . | . . Flight . | . . Utility 6 | 2 4 Device 3 | 1 2 Storage 2 | 1 1 Processor 1 | . 1 Hackware . | . . Protection . | . . Artifact . | . . Weapon 4 | 2 2 Energy Gun 1 | 1 . Energy Cannon . | . . Ballistic Gun 3 | 1 2 Ballistic Cannon . | . . Launcher . | . . Special Weapon . | . . Impact Weapon . | . . Slashing Weapon . | . . Piercing Weapon . | . . Special Melee Weapon . | . . Unidentified Prototypes . | . . Parts Lost 8 | . 8 Power 3 | . 3 Propulsion 3 | . 3 Utility 1 | . 1 Weapon 1 | . 1 Highest Loss Streak 5 | . 5 To Critical Strikes . | . . Average Slot Usage (%) 91 | . 91 Engine 9 | . 9 Treads 1 | . 1 Wheel 25 | . 25 Device 6 | . 6 Storage 14 | . 14 Processor 5 | . 5 Energy Gun 5 | . 5 Ballistic Gun 21 | . 21 Naked Turns . | . . Heaviest Build 16 | 12 16 Greatest Support 40 | 26 40 Greatest Overweight (x) . | . . Average Overweight (x) . | . . Largest Inventory Capacity 10 | 8 10 Average Capacity 8 | 7 8 Most Carried 8 | 7 8 Average Carried 6 | 4 7 Final Capacity 10 | 8 10 Final Carried 8 | 7 8 Class Distribution -------------------- 70% | Mutant 29% | Scavenger-Mutant Dominant Class ---------------- Mutant | -10/Materials Resources | -11 -10 ----------- Run | Yrd Mat Matter Collected 492 | 278 214 Remotely . | . . Salvage Created 724 | 117 607 Parts 41 | 6 35 Haulers Intercepted 1 | . 1 Recyclers Shooed 1 | . 1 Parts Field Recycled . | . . Retrieved Matter . | . . Parts Self-Destructed . | . . Prevented . | . . Kills | -11 -10 ------- Run | Yrd Mat Combat Hostiles Destroyed 10 | . 10 Guns 10 | . 10 Classes Destroyed 7 | 2 5 Worker 4 | . 4 Tunneler 2 | 1 1 Hauler 1 | . 1 Recycler 3 | 1 2 Watcher 2 | . 2 Swarmer 6 | . 6 Grunt 4 | . 4 Best Kill Streak 6 | 1 6 Combat Bots Only 4 | . 4 Max Kills in Single Turn 2 | 1 2 Gunslinging 1 | . 1 Exploded . | . . Melee . | . . Uniques/NPCs Destroyed . | . . Combat | -11 -10 -------- Run | Yrd Mat Hostile Shots Fired 88 | . 88 Missed 17 | . 17 Damage Taken 753 | . 753 Core 261 | . 261 Absorbed by Shields . | . . Core Remaining (%) 100 | 100 . Volleys Fired 82 | 8 74 Largest 2 | 2 2 Hottest 60 | 60 60 Shots Fired 147 | 16 131 Gun 147 | 16 131 Cannon . | . . Launcher . | . . Special . | . . Kinetic 121 | 8 113 Thermal . | . . Explosive . | . . Electromagnetic 26 | 8 18 Robot Hit Streak 15 | 5 15 Robot Miss Streak 4 | 3 4 Penetration Max . | . . Secondary Targets 2 | . 2 Max Gunslinging Chain 1 | . 1 Shots Hit Robots 85 | 10 75 Core Hits 41 | 3 38 Critical Kills 1 | . 1 Critical Parts Destroyed . | . . Critical Strikes 1 | . 1 Destroy 1 | . 1 Melee Attacks . | . . Impact . | . . Slashing . | . . Piercing . | . . Sneak Attacks . | . . Combat Hostiles . | . . Follow-up Attacks . | . . Damage Inflicted 752 | 113 639 Guns 752 | 113 639 Cannons . | . . Explosions . | . . Melee . | . . Ramming . | . . Kinetic 555 | 31 524 Thermal . | . . Explosive . | . . Electromagnetic 197 | 82 115 Impact . | . . Slashing . | . . Piercing . | . . Highest Corruption 2 | . 2 Average Corruption 2 | . 2 Corruption Purged . | . . Corruption Blocked . | . . Effects 2 | . 2 Matter Fused 1 | . 1 Data Loss (minor) 1 | . 1 Overload Shots . | . . Overflow Damage . | . . Projectiles . | . . Explosions . | . . Melee . | . . Knockbacks . | . . Impact . | . . Kinetic . | . . Secondary . | . . Self-Inflicted Damage . | . . Shots . | . . Rammed . | . . Targets Rammed . | . . Kicked . | . . Crushed . | . . Highest Temperature 50 | 40 50 Average Temperature 18 | 20 17 Received Heat Transfer 237 | . 237 Siege Activations . | . . Robots Corrupted . | . . Combat Hostiles . | . . Parts Fried 1 | . 1 Impact Corruptions . | . . Robots Melted . | . . Combat Hostiles . | . . Parts Melted . | . . Heat Transferred . | . . Parts Sabotaged . | . . Parts Stolen . | . . Parts Stripped . | . . Power Chain Reactions . | . . Alert | -11 -10 ------- Run | Yrd Mat Peak Influence 233 | 10 233 Initial 6 | . 6 Average 69 | 2 81 Maximum Alert Level 1 | . 1 Low Security (%) 92 | 100 91 Level 1 7 | . 8 Level 2 . | . . Level 3 . | . . Level 4 . | . . Level 5 . | . . High Security . | . . Max Security . | . . Squads Dispatched 2 | . 2 Investigation 1 | . 1 Extermination . | . . Reinforcement 1 | . 1 Assault . | . . Garrison . | . . Intercept . | . . Searches Triggered . | . . Construction Impeded . | . . Haulers Reinforced . | . . Active Scanning Responses . | . . Cargo Convoy Interrupts . | . . Stealth | -11 -10 --------- Run | Yrd Mat Distress Signals 1 | . 1 Communications Jammed . | . . Distress Signals . | . . Times Spotted 17 | . 17 Peak Tracking Total 4 | . 4 Tactical Retreats 1 | . 1 Traps | -11 -10 ------- Run | Yrd Mat Traps Triggered 2 | . 2 Indirectly . | . . Trap Hack Attempts . | . . Triggered . | . . Disarmed . | . . Reprogrammed . | . . Reused . | . . Traps Extracted . | . . Installed . | . . Triggered . | . . Machines | -11 -10 ---------- Run | Yrd Mat Machines Disabled . | . . Max in Single Turn . | . . Machines Repaired . | . . Machines Dismantled . | . . Machines Sabotaged . | . . Overloaded Fab Kills . | . . Hacking | -11 -10 --------- Run | Yrd Mat Machines Accessed 3 | . 3 Terminals 2 | . 2 Fabricators . | . . Repair Stations . | . . Recycling Units 1 | . 1 Scanalyzers . | . . Garrison Access . | . . Total Hacks 12 | . 12 Successful 6 | . 6 Failed 6 | . 6 Catastrophic . | . . Database Lockouts . | . . Manual . | . . Terminals 10 | . 10 Fabricators . | . . Repair Stations . | . . Recycling Units 2 | . 2 Scanalyzers . | . . Garrison Access . | . . Terminal Hacks 5 | . 5 Prototype ID Bank 1 | . 1 Branch Access Points 1 | . 1 Locate Traps 1 | . 1 Hauler Manifests 1 | . 1 Zone Layout 1 | . 1 Fabricator Hacks . | . . Repair Station Hacks . | . . Recycling Unit Hacks 1 | . 1 Report Inventory 1 | . 1 Scanalyzer . | . . Garrison Access Hacks . | . . Unauthorized Hacks . | . . Terminals . | . . Fabricators . | . . Repair Stations . | . . Recycling Units . | . . Scanalyzers . | . . Garrison Access . | . . Data Cores Recovered . | . . Used . | . . Hacking Detections 2 | . 2 Full Trace Events . | . . Feedback Events . | . . Feedback Blocked . | . . Robot Schematics Acquired . | . . Robots Built . | . . Authchips . | . . Time . | . . Total Robot Build Rating . | . . Part Schematics Acquired . | . . Parts Built . | . . Authchips . | . . Time . | . . Total Part Build Rating . | . . Parts Repaired . | . . Time . | . . Parts Recycled . | . . Recycled Matter . | . . Retrieved Matter . | . . Retrieved Components . | . . Parts Scanalyzed . | . . Part Schematics Acquired . | . . Parts Damaged . | . . Bothacking | -11 -10 ------------ Run | Yrd Mat Used RIF Installer . | . . Robots Hacked . | . . Non-combat . | . . Combat . | . . Robot Hacks Applied . | . . Relay Couplers Released . | . . Fabnet Peak Effective % . | . . Robots Rewired . | . . Allies Hacked . | . . Hacks Repelled . | . . Allies | -11 -10 -------- Run | Yrd Mat Total Allies . | . . Largest Group . | . . Highest-Rated Group . | . . Highest-Rated Ally . | . . Total Orders . | . . Ally Attacks . | . . Total Damage . | . . Kills . | . . Allies Corrupted . | . . Allies Melted . | . . Intel | -11 -10 ------- Run | Yrd Mat Robot Analysis Total . | . . Derelict Logs Recovered . | . . Drone Launches . | . . Drone Recoveries . | . . Exploration | -11 -10 ------------- Run | Yrd Mat Turns Passed 642 | 97 545 Spaces Moved 450 | 69 381 Core 16 | 16 . Treads 6 | . 6 Legs . | . . Wheels 428 | 53 375 Hover . | . . Flight . | . . Fastest Speed 50 | 50 80 Average Speed 86 | 80 87 Slowest Speed 160 | 90 160 Overloaded Moves . | . . Propulsion Burnouts . | . . Robots Hopped . | . . Cave-ins Triggered . | . . Exploration Rate (%) 36 | 5 68 Regions Visited 1 Branch Regions . Pre-discovered Areas . | . . Known Exits Taken . | . . Unknown Exits Taken 1 | 1 . Scrap Searched . | . . Spaces Dug . | . . Terrain Destroyed . | . . Melee . | . . Projectile . | . . AOE . | . . Terrain Rammed . | . . Walls Destroyed . | . . Machines Disabled . | . . Actions | -11 -10 --------- Run | Yrd Mat Total 580 | 93 487 Wait 2 | . 2 Move 449 | 68 381 Hop . | . . Pick Up 19 | 10 9 Fast Attach 8 | 4 4 Attach 8 | 3 5 Detach . | . . Swap 6 | . 6 Drop 6 | . 6 Fire 82 | 8 74 Melee . | . . Ram . | . . Kick . | . . Crush . | . . Escape Stasis . | . . Rewire . | . . Trap . | . . Miscellaneous . | . . Route ------- -11/Scrapyard -10/Materials (discovered 3 exits: [*Mat] / *Min x2) History --------- Turn | Location | Event 3 | -11/Scrapyard | Discovered new exit (range 15) 98 | -11/Scrapyard | Entered Materials 98 | -10/Materials | Discovered new exit (range 14) 227 | -10/Materials | Discovered new exit (range 11) 300 | -10/Materials | Identified exit to Mines 313 | -10/Materials | Build established: Mutant 385 | -10/Materials | Lost 5 parts (1p2n1u1w) 432 | -10/Materials | Core integrity fell below 50% 450 | -10/Materials | Core integrity fell below 20% 490 | -10/Materials | Lost 3 parts (2p1n) 524 | -10/Materials | Discovered new exit (range 16) 643 | -10/Materials | Destroyed by G-34 Mercenary with Small Laser Last Messages --------------- 00556_ T-07 Excavator suffers critical hit (Destroy). 00556_ T-07 Excavator destroyed. 00560_ Extracted 13 matter. 00561_ Acquired Lgt. Ion Engine. 00570_ Dropped Seismic Detector. 00571_ Acquired Imp. Terrain Scanner. 00582_ S-10 Pest destroyed. 00582_ Switching to secondary target: S-10 Pest. 00584_ S-10 Pest destroyed. 00590_ Acquired 10 matter. 00591_ Dropped Lgt. Assault Rifle. 00592_ System corrupted: Component data lost. 00593_ Acquired 15 matter. 00594_ Acquired 11 matter. 00610_ Dropped Sml. Storage Unit. 00615_ O-16 Technician: "IFF HANDSHAKE FAILED. SECURING TERMINAL." 00618_ O-16 Technician uses terminal to summon reinforcements. 00618_ ALERT: Hostiles spotted, dispatching reinforcements to Terminal M007. 00618_ O-16 Technician locks terminal. Map ----- +----------------------------------------------------+ | ???????????#??# # # | | ?????????????## # #%! | | ??????????????# + + | | ?????????#??########### ## =% | | ????????????# # ## | | ????????????# = + ## * | | ????????????# *=[ # ## | | ???????#????# %= *# ## ""T | | ????????????#######+### ## """ | | ??????????????????# #?#+###### | | ??????????????????# # ! !/ | | ??????????????????# # /! | | ?????#????????????# # """ /! | | ??????????????????# #?""" | | ?????????########?# #??"" | | ?????????# #?# #? | | ########## ! ### #?######## | | ? # + #####????? | | #""" # ### !##????? | | #""" # #?# !#????? | | #""" ! # #?# !#????? | | # ###+####?# !#????? | | #""" ! ## ##### !#????? | | #""" + T !##????? | | #""" ## ###########????? | | # @ ### ##??????? #????? | | ?####/####?# #???????? ###### | | ???? ????# #???????? # | | ???? ???? ???????? # | | ??? ??? ???????? # | | ??? ??? ???????? # | | ??# ##### #??????? ###### | | ??## ##????+#?"???? #????? | | ???# #? ???????????? #????? | | ???# g #??? ??????????###????? | | ???# +????? ???????????????? | | ???# #?????????????????????? | | ???# #?? ??????????????????? | | ???? ??????? ??????????????? | | ???? ??????????????????????? | | ???? ??????????????????????? | | ?????????????????????????????? | | ?????????????????????????????? | | ?????????????????????????????? | | ?????????????????????????????? | | ?????????????????????????????? | | ?????????????????????????????? | | ?????????????????????????????? | | ?????????????????????????????? | | ?????????????????????????????? | +----------------------------------------------------+ Best States ------------- Heat Dissipation 25 Energy Generation 10 Energy Capacity 125 Matter Stores 300 Matter Capacity 300 Sight Range 16 Terrain Scan Range 16 Terrain Scan Density 10 Evasion (%) 50 Targeting Accuracy 5 Recoil Reduction 2 Item Schematics ----------------- None Robot Schematics ------------------ None Fabricated ------------ Nothing Alien Tech Used ----------------- None Achievements -------------- None Challenges ------------ None Game ------ Seed SurveybotTacticalArray Manual? 0 Play Time 00:12:19 Cumulative 10.9 hours Start 2024.05.23 @ 12:06:46 End 2024.05.23 @ 12:13:34 Sessions 1 Manual Loads 0 Difficulty Rogue Special Mode None Game No. 10 Rogue 10 Adventurer 0 Explorer 0 Win Type - Total 0 Types 0/0/0/0/0/0/0/0/0 Lore% 16 Gallery% 19 Achievement% 17 Wizard Run 0 Options --------- Layout 0 ASCII 0 Keyboard 1 Movement Numpad Keybinds 0 Fullscreen 2 Font 18/SmallcapsGlow Map View 76x50 Zoom Use 0% Tactical HUD 1 Map Filters NONE Filters NONE Steam 1 RUN: bfaeacad-395e-4eba-bf37-a2832f4bc4e4